[Event "Early-Titled-Tuesday-Blitz-September-05-2023"]
[Site "Chess.com"]
[Date "2023.09.05"]
[Round "11"]
[White "effefe"]
[Black "brm72"]
[Result "0-1"]
[WhiteElo "2346"]
[BlackElo "2530"]
[TimeControl "180+1"]
[EndTime "10:06:00 PDT"]
[Termination "brm72 won by checkmate"]

1. d4 {[%clk 0:03:00.9]} 1... d5 {[%clk 0:02:10.6]} 2. c4 {[%clk 0:02:59]} 2...
e6 {[%clk 0:02:11.5]} 3. Nc3 {[%clk 0:02:59.1]} 3... c6 {[%clk 0:02:11.5]} 4.
Nf3 {[%clk 0:02:58.8]} 4... dxc4 {[%clk 0:02:11.2]} 5. a4 {[%clk 0:02:58.3]}
5... Bb4 {[%clk 0:02:11]} 6. e3 {[%clk 0:02:57.8]} 6... b5 {[%clk 0:02:11.2]} 7.
Be2 {[%clk 0:02:57.6]} 7... Bb7 {[%clk 0:02:11.2]} 8. O-O {[%clk 0:02:58.4]}
8... a6 {[%clk 0:02:11.5]} 9. Ne5 {[%clk 0:02:58]} 9... Nf6 {[%clk 0:02:09.3]}
10. f4 {[%clk 0:02:58.4]} 10... Qc8 {[%clk 0:02:07.8]} 11. Bf3 {[%clk
0:02:49.2]} 11... Nbd7 {[%clk 0:02:07.4]} 12. Ne4 {[%clk 0:02:49.5]} 12... Nd5
{[%clk 0:02:05.2]} 13. Qe2 {[%clk 0:02:41.6]} 13... f6 {[%clk 0:01:52.8]} 14.
Bh5+ {[%clk 0:02:36]} 14... g6 {[%clk 0:01:52.4]} 15. Nxg6 {[%clk 0:02:34]}
15... hxg6 {[%clk 0:01:52]} 16. Bxg6+ {[%clk 0:02:34.9]} 16... Ke7 {[%clk
0:01:52.6]} 17. f5 {[%clk 0:02:35.1]} 17... e5 {[%clk 0:01:49.9]} 18. g4 {[%clk
0:02:20.5]} 18... c5 {[%clk 0:01:45.1]} 19. g5 {[%clk 0:02:13.8]} 19... Rh4
{[%clk 0:01:38.4]} 20. gxf6+ {[%clk 0:02:07.3]} 20... N7xf6 {[%clk 0:01:37.9]}
21. Nxf6 {[%clk 0:02:05.6]} 21... Nxf6 {[%clk 0:01:38.8]} 22. dxe5 {[%clk
0:02:02.9]} 22... Rg4+ {[%clk 0:01:38.4]} 23. Qxg4 {[%clk 0:01:47.2]} 23... Nxg4
{[%clk 0:01:39.3]} 24. e4 {[%clk 0:01:47.8]} 24... c3 {[%clk 0:01:29.3]} 25.
Bg5+ {[%clk 0:01:47.6]} 25... Kf8 {[%clk 0:01:29]} 26. Rad1 {[%clk 0:01:38.5]}
26... c2 {[%clk 0:01:20.4]} 27. Rd3 {[%clk 0:01:11.1]} 27... c4 {[%clk
0:01:18.4]} 28. Rg3 {[%clk 0:00:58.5]} 28... Qc5+ {[%clk 0:01:08.4]} 29. Kg2
{[%clk 0:00:55.2]} 29... Bxe4+ {[%clk 0:01:08]} 30. Kh3 {[%clk 0:00:55.3]} 30...
Nf2+ {[%clk 0:01:07.8]} 31. Kh4 {[%clk 0:00:39.7]} 31... Qxe5 {[%clk 0:00:19.6]}
32. Rxf2 {[%clk 0:00:32.6]} 32... Bd6 {[%clk 0:00:19.4]} 33. Bh6+ {[%clk
0:00:24.1]} 33... Ke7 {[%clk 0:00:19.7]} 34. f6+ {[%clk 0:00:04]} 34... Qxf6+
{[%clk 0:00:19.7]} 35. Rxf6 {[%clk 0:00:03.6]} 35... Bxg3+ {[%clk 0:00:20]} 36.
hxg3 {[%clk 0:00:02.1]} 36... Kxf6 {[%clk 0:00:20]} 37. Bxe4 {[%clk 0:00:02.8]}
37... Rh8 {[%clk 0:00:20.6]} 38. Bxc2 {[%clk 0:00:01.2]} 38... Rxh6+ {[%clk
0:00:20.8]} 39. Kg4 {[%clk 0:00:02]} 39... Rh1 {[%clk 0:00:21.4]} 40. axb5
{[%clk 0:00:01.5]} 40... axb5 {[%clk 0:00:21.6]} 41. Be4 {[%clk 0:00:01.7]}
41... Rc1 {[%clk 0:00:22.1]} 42. Bc6 {[%clk 0:00:01.8]} 42... b4 {[%clk
0:00:23]} 43. Ba4 {[%clk 0:00:02.1]} 43... c3 {[%clk 0:00:23.7]} 44. bxc3 {[%clk
0:00:02.4]} 44... Rxc3 {[%clk 0:00:24.6]} 45. Kf4 {[%clk 0:00:02.7]} 45... Ra3
{[%clk 0:00:25.5]} 46. Bb5 {[%clk 0:00:02.9]} 46... b3 {[%clk 0:00:26.4]} 47.
Ke4 {[%clk 0:00:02.7]} 47... b2 {[%clk 0:00:27.3]} 48. Bd3 {[%clk 0:00:02.5]}
48... Ra1 {[%clk 0:00:28.2]} 49. Bc2 {[%clk 0:00:01.8]} 49... b1=Q {[%clk
0:00:29.1]} 50. Bxb1 {[%clk 0:00:02.4]} 50... Rxb1 {[%clk 0:00:30]} 51. Kf4
{[%clk 0:00:03.2]} 51... Kg7 {[%clk 0:00:30.9]} 52. g4 {[%clk 0:00:04.1]} 52...
Rg1 {[%clk 0:00:31.8]} 53. Kg5 {[%clk 0:00:04.8]} 53... Rc1 {[%clk 0:00:31.5]}
54. Kh5 {[%clk 0:00:05.7]} 54... Rc5+ {[%clk 0:00:32.2]} 55. g5 {[%clk
0:00:05.8]} 55... Rc4 {[%clk 0:00:32.7]} 56. g6 {[%clk 0:00:05.9]} 56... Rc5+
{[%clk 0:00:33.6]} 57. Kh4 {[%clk 0:00:06.5]} 57... Kxg6 {[%clk 0:00:34.5]} 58.
Kg4 {[%clk 0:00:07.3]} 58... Rc4+ {[%clk 0:00:35.4]} 59. Kh3 {[%clk 0:00:07.6]}
59... Kf5 {[%clk 0:00:36.3]} 60. Kg3 {[%clk 0:00:08.5]} 60... Rc3+ {[%clk
0:00:37.2]} 61. Kh4 {[%clk 0:00:09.1]} 61... Rd3 {[%clk 0:00:37.7]} 62. Kh5
{[%clk 0:00:09]} 62... Rh3# {[%clk 0:00:38.6]} 0-1

[Event "Early-Titled-Tuesday-Blitz-September-05-2023"]
[Site "Chess.com"]
[Date "2023.09.05"]
[Round "11"]
[White "kushbhagat2009"]
[Black "ckgchess"]
[Result "1-0"]
[WhiteElo "2651"]
[BlackElo "2841"]
[TimeControl "180+1"]
[EndTime "10:06:01 PDT"]
[Termination "kushbhagat2009 won by resignation"]

1. d4 {[%clk 0:03:00.9]} 1... Nf6 {[%clk 0:03:00.1]} 2. Bf4 {[%clk 0:03:00.8]}
2... d5 {[%clk 0:03:00.3]} 3. e3 {[%clk 0:03:01.1]} 3... c5 {[%clk 0:03:00.8]}
4. Nf3 {[%clk 0:03:00.9]} 4... Nc6 {[%clk 0:03:01.3]} 5. Nbd2 {[%clk 0:03:01.5]}
5... cxd4 {[%clk 0:02:58.1]} 6. exd4 {[%clk 0:03:00.9]} 6... Bf5 {[%clk
0:02:58.3]} 7. Bb5 {[%clk 0:02:57.1]} 7... e6 {[%clk 0:02:55.5]} 8. O-O {[%clk
0:02:49.7]} 8... Bd6 {[%clk 0:02:36.9]} 9. Bxd6 {[%clk 0:02:49]} 9... Qxd6
{[%clk 0:02:37.8]} 10. Ne5 {[%clk 0:02:46.2]} 10... O-O {[%clk 0:02:37]} 11.
Bxc6 {[%clk 0:02:44]} 11... bxc6 {[%clk 0:02:37.5]} 12. Nb3 {[%clk 0:02:41.4]}
12... Ne8 {[%clk 0:02:20.6]} 13. Re1 {[%clk 0:02:26]} 13... Nc7 {[%clk
0:02:17.3]} 14. c4 {[%clk 0:02:00.2]} 14... dxc4 {[%clk 0:02:06.5]} 15. Nxc4
{[%clk 0:02:01.1]} 15... Qe7 {[%clk 0:01:42.7]} 16. Rc1 {[%clk 0:01:59.6]} 16...
Nd5 {[%clk 0:01:31.8]} 17. Ne5 {[%clk 0:01:56.7]} 17... Qg5 {[%clk 0:01:32.6]}
18. g3 {[%clk 0:01:34.5]} 18... a5 {[%clk 0:01:26.7]} 19. h4 {[%clk 0:01:30.5]}
19... Qh6 {[%clk 0:01:18.3]} 20. Nxc6 {[%clk 0:01:30.8]} 20... a4 {[%clk
0:01:18.3]} 21. Nc5 {[%clk 0:01:28.7]} 21... a3 {[%clk 0:01:18.8]} 22. b4 {[%clk
0:01:23.4]} 22... g5 {[%clk 0:01:09.5]} 23. hxg5 {[%clk 0:00:56.8]} 23... Qxg5
{[%clk 0:01:10.4]} 24. b5 {[%clk 0:00:57.1]} 24... h5 {[%clk 0:01:10.3]} 25. Nd7
{[%clk 0:00:53.2]} 25... Rfe8 {[%clk 0:00:59.3]} 26. b6 {[%clk 0:00:52.4]} 26...
h4 {[%clk 0:00:50.1]} 27. Qf3 {[%clk 0:00:52.2]} 27... Bg4 {[%clk 0:00:40.5]}
28. gxh4 {[%clk 0:00:34.9]} 28... Qg7 {[%clk 0:00:30.6]} 29. Qg3 {[%clk
0:00:30.4]} 29... f5 {[%clk 0:00:31.3]} 30. b7 {[%clk 0:00:26.6]} 30... Qxd7
{[%clk 0:00:16]} 31. bxa8=Q {[%clk 0:00:26.8]} 31... Rxa8 {[%clk 0:00:16.9]} 32.
Ne5 {[%clk 0:00:27.4]} 32... Qg7 {[%clk 0:00:16.8]} 33. Nxg4 {[%clk 0:00:27.7]}
33... fxg4 {[%clk 0:00:17.7]} 34. Rxe6 {[%clk 0:00:27.2]} 34... Rf8 {[%clk
0:00:17.2]} 35. Re4 {[%clk 0:00:26]} 35... Nf6 {[%clk 0:00:16.2]} 36. Rf4 {[%clk
0:00:25.2]} 36... Re8 {[%clk 0:00:11.9]} 37. Qxa3 {[%clk 0:00:19.8]} 37... Nh5
{[%clk 0:00:09.5]} 38. Rf5 {[%clk 0:00:18.3]} 38... Qh6 {[%clk 0:00:07.4]} 39.
Rg5+ {[%clk 0:00:17.4]} 39... Kh8 {[%clk 0:00:06.8]} 40. Qb2 {[%clk 0:00:12.5]}
40... g3 {[%clk 0:00:06.3]} 41. d5+ {[%clk 0:00:11.2]} 41... Kh7 {[%clk
0:00:06.8]} 42. fxg3 {[%clk 0:00:09.6]} 42... Nxg3 {[%clk 0:00:06.8]} 43. Rxg3
{[%clk 0:00:08.6]} 43... Qb6+ {[%clk 0:00:06.8]} 44. Qxb6 {[%clk 0:00:08.2]} 1-0

[Event "Early-Titled-Tuesday-Blitz-September-05-2023"]
[Site "Chess.com"]
[Date "2023.09.05"]
[Round "11"]
[White "unclear15"]
[Black "ChainedDowntohell"]
[Result "1-0"]
[WhiteElo "2475"]
[BlackElo "2558"]
[TimeControl "180+1"]
[EndTime "10:06:01 PDT"]
[Termination "unclear15 won by resignation"]

1. e4 {[%clk 0:03:00.9]} 1... c5 {[%clk 0:02:56.5]} 2. Nf3 {[%clk 0:02:57.3]}
2... d6 {[%clk 0:02:52.6]} 3. d4 {[%clk 0:02:57.2]} 3... cxd4 {[%clk 0:02:52.5]}
4. Nxd4 {[%clk 0:02:58.1]} 4... Nf6 {[%clk 0:02:52.4]} 5. Nc3 {[%clk 0:02:58.7]}
5... Bd7 {[%clk 0:02:51.4]} 6. Bc4 {[%clk 0:02:58.4]} 6... e5 {[%clk 0:02:49.7]}
7. Nf3 {[%clk 0:02:57.6]} 7... Be7 {[%clk 0:02:43.2]} 8. Bg5 {[%clk 0:02:55.4]}
8... O-O {[%clk 0:02:31]} 9. Bxf6 {[%clk 0:02:47.7]} 9... Bxf6 {[%clk 0:02:29]}
10. Qxd6 {[%clk 0:02:47.5]} 10... Nc6 {[%clk 0:02:13.8]} 11. Nd5 {[%clk
0:02:37.7]} 11... Bg4 {[%clk 0:01:50.7]} 12. Nxf6+ {[%clk 0:02:20]} 12... gxf6
{[%clk 0:01:50.1]} 13. Qxd8 {[%clk 0:02:13.9]} 13... Rfxd8 {[%clk 0:01:48.5]}
14. c3 {[%clk 0:01:57.4]} 14... f5 {[%clk 0:01:46]} 15. Ng5 {[%clk 0:01:39.6]}
15... Kg7 {[%clk 0:01:38.9]} 16. f3 {[%clk 0:01:32.2]} 16... Bh5 {[%clk
0:01:36.5]} 17. exf5 {[%clk 0:01:31.2]} 17... h6 {[%clk 0:01:20.3]} 18. Ne4
{[%clk 0:01:26.1]} 18... f6 {[%clk 0:01:17.9]} 19. Nc5 {[%clk 0:01:21.5]} 19...
Bf7 {[%clk 0:01:16]} 20. Bxf7 {[%clk 0:01:19.1]} 20... Kxf7 {[%clk 0:01:16.9]}
21. Nxb7 {[%clk 0:01:11.7]} 21... Rd5 {[%clk 0:01:16]} 22. Rd1 {[%clk
0:01:03.9]} 22... Rxd1+ {[%clk 0:01:15.1]} 23. Kxd1 {[%clk 0:01:04.8]} 23... Ne7
{[%clk 0:01:03.4]} 24. g4 {[%clk 0:00:41.6]} 24... Nd5 {[%clk 0:01:01]} 25. Kc2
{[%clk 0:00:34.3]} 25... Ke7 {[%clk 0:01:00.4]} 26. b4 {[%clk 0:00:29.8]} 26...
h5 {[%clk 0:00:43.8]} 27. h3 {[%clk 0:00:27.6]} 27... Rh8 {[%clk 0:00:42.7]} 28.
Kd3 {[%clk 0:00:18.8]} 28... Nf4+ {[%clk 0:00:33.6]} 29. Kc4 {[%clk 0:00:18.9]}
29... Kd7 {[%clk 0:00:29.3]} 30. Nc5+ {[%clk 0:00:18.6]} 30... Kc6 {[%clk
0:00:29.2]} 31. Ne4 {[%clk 0:00:18.2]} 31... Rh6 {[%clk 0:00:24.5]} 32. Rd1
{[%clk 0:00:16.2]} 32... Kc7 {[%clk 0:00:20.3]} 33. Rd6 {[%clk 0:00:13.7]} 33...
Nxh3 {[%clk 0:00:19.8]} 34. Rxf6 {[%clk 0:00:13.6]} 34... Rh8 {[%clk 0:00:18.7]}
35. g5 {[%clk 0:00:13.5]} 35... Ng1 {[%clk 0:00:17.2]} 36. g6 {[%clk 0:00:13.9]}
36... Nxf3 {[%clk 0:00:17.1]} 37. Rf7+ {[%clk 0:00:14.8]} 37... Kc6 {[%clk
0:00:16.1]} 38. b5+ {[%clk 0:00:14.1]} 38... Kb6 {[%clk 0:00:16.2]} 39. Nc5
{[%clk 0:00:13.9]} 39... Rc8 {[%clk 0:00:12.6]} 40. Rb7+ {[%clk 0:00:11.8]}
40... Ka5 {[%clk 0:00:11]} 41. Rxa7+ {[%clk 0:00:12.1]} 41... Kb6 {[%clk
0:00:11.2]} 42. Ra6+ {[%clk 0:00:12.4]} 42... Kc7 {[%clk 0:00:11.8]} 43. Rc6+
{[%clk 0:00:13.1]} 43... Kd8 {[%clk 0:00:12.4]} 44. Rxc8+ {[%clk 0:00:12.8]}
44... Kxc8 {[%clk 0:00:12.6]} 45. g7 {[%clk 0:00:13.5]} 45... Kc7 {[%clk
0:00:12]} 46. g8=Q {[%clk 0:00:13.9]} 46... h4 {[%clk 0:00:12.3]} 47. Qf7+
{[%clk 0:00:13.7]} 1-0

[Event "Early-Titled-Tuesday-Blitz-September-05-2023"]
[Site "Chess.com"]
[Date "2023.09.05"]
[Round "11"]
[White "InadaC"]
[Black "ChEsper99"]
[Result "1-0"]
[WhiteElo "1830"]
[BlackElo "2159"]
[TimeControl "180+1"]
[EndTime "10:06:04 PDT"]
[Termination "InadaC won by resignation"]

1. d4 {[%clk 0:02:54.8]} 1... f6 {[%clk 0:02:59.7]} 2. c4 {[%clk 0:02:55.1]}
2... Kf7 {[%clk 0:03:00.1]} 3. Nc3 {[%clk 0:02:54.7]} 3... e6 {[%clk 0:02:59.5]}
4. e4 {[%clk 0:02:55.1]} 4... d6 {[%clk 0:02:58.5]} 5. h4 {[%clk 0:02:54.3]}
5... g6 {[%clk 0:02:55.8]} 6. h5 {[%clk 0:02:53.8]} 6... Bg7 {[%clk 0:02:56.3]}
7. hxg6+ {[%clk 0:02:54]} 7... hxg6 {[%clk 0:02:56.9]} 8. Rxh8 {[%clk 0:02:54]}
8... Bxh8 {[%clk 0:02:57.8]} 9. Nf3 {[%clk 0:02:53.9]} 9... Bg7 {[%clk
0:02:57.9]} 10. Be2 {[%clk 0:02:54.2]} 10... Ne7 {[%clk 0:02:58.5]} 11. d5
{[%clk 0:02:54.6]} 11... Qh8 {[%clk 0:02:58]} 12. Be3 {[%clk 0:02:53]} 12...
Qh1+ {[%clk 0:02:56.3]} 13. Bf1 {[%clk 0:02:53.7]} 13... e5 {[%clk 0:02:50.9]}
14. Qd2 {[%clk 0:02:53.5]} 14... Bg4 {[%clk 0:02:40.9]} 15. Qe2 {[%clk
0:02:52.6]} 15... Qh5 {[%clk 0:02:38.4]} 16. O-O-O {[%clk 0:02:50.6]} 16... Bh6
{[%clk 0:02:37.4]} 17. Kb1 {[%clk 0:02:30.7]} 17... Bxe3 {[%clk 0:02:34.9]} 18.
fxe3 {[%clk 0:02:26.9]} 18... Nd7 {[%clk 0:02:26.3]} 19. Qf2 {[%clk 0:02:09.6]}
19... a6 {[%clk 0:02:08.8]} 20. Be2 {[%clk 0:02:09.6]} 20... Nc5 {[%clk
0:02:05.3]} 21. Rf1 {[%clk 0:02:08.6]} 21... Ng8 {[%clk 0:01:54.2]} 22. g3
{[%clk 0:01:53.6]} 22... Rf8 {[%clk 0:01:45.4]} 23. b4 {[%clk 0:01:21.5]} 23...
Nd7 {[%clk 0:01:44.4]} 24. Ng1 {[%clk 0:01:20.5]} 24... Bxe2 {[%clk 0:01:43.2]}
25. Ngxe2 {[%clk 0:01:21.4]} 25... Nh6 {[%clk 0:01:36.9]} 26. Qg2 {[%clk
0:01:19]} 26... Rh8 {[%clk 0:01:27.2]} 27. Rh1 {[%clk 0:01:17.3]} 27... Qg5
{[%clk 0:01:25]} 28. Nd1 {[%clk 0:01:13.2]} 28... Kg7 {[%clk 0:01:23.7]} 29. Kc2
{[%clk 0:01:13.2]} 29... Ng4 {[%clk 0:01:20.4]} 30. Rxh8 {[%clk 0:01:10.1]}
30... Kxh8 {[%clk 0:01:17.3]} 31. Kd3 {[%clk 0:01:10.4]} 31... f5 {[%clk
0:01:12.8]} 32. exf5 {[%clk 0:01:09.8]} 32... e4+ {[%clk 0:00:58.1]} 33. Qxe4
{[%clk 0:00:56.5]} 33... Nde5+ {[%clk 0:00:54.5]} 34. Kc3 {[%clk 0:00:55.8]}
34... gxf5 {[%clk 0:00:53.1]} 35. Qh1+ {[%clk 0:00:56.1]} 35... Kg7 {[%clk
0:00:51.9]} 36. Nf4 {[%clk 0:00:53.7]} 36... Kg8 {[%clk 0:00:36.1]} 37. Kb3
{[%clk 0:00:47.4]} 37... Nf6 {[%clk 0:00:32.2]} 38. Ne6 {[%clk 0:00:41.8]} 38...
Qg4 {[%clk 0:00:22]} 39. Nd4 {[%clk 0:00:32.9]} 39... Qe4 {[%clk 0:00:15.6]} 40.
Qh6 {[%clk 0:00:28.4]} 40... Qd3+ {[%clk 0:00:14.3]} 41. Nc3 {[%clk 0:00:20.4]}
41... Qxc4+ {[%clk 0:00:14.5]} 42. Kb2 {[%clk 0:00:20.6]} 42... Nd3+ {[%clk
0:00:08.9]} 43. Kc2 {[%clk 0:00:19.3]} 43... Nxb4+ {[%clk 0:00:09.1]} 44. Kb2
{[%clk 0:00:19.6]} 44... Nd3+ {[%clk 0:00:06.1]} 45. Kc2 {[%clk 0:00:20]} 45...
Ne1+ {[%clk 0:00:04.2]} 46. Kd1 {[%clk 0:00:19.4]} 46... Qd3+ {[%clk 0:00:03.9]}
47. Kxe1 {[%clk 0:00:19.8]} 47... Qxc3+ {[%clk 0:00:03.9]} 48. Ke2 {[%clk
0:00:20.1]} 48... Qb2+ {[%clk 0:00:03.9]} 49. Kf3 {[%clk 0:00:19]} 49... Kf7
{[%clk 0:00:01.6]} 50. Qh1 {[%clk 0:00:15.4]} 50... Qb1 {[%clk 0:00:01.4]} 51.
Qxb1 {[%clk 0:00:15.3]} 1-0

[Event "Early-Titled-Tuesday-Blitz-September-05-2023"]
[Site "Chess.com"]
[Date "2023.09.05"]
[Round "11"]
[White "FeketeBarika"]
[Black "CrushingKings"]
[Result "1-0"]
[WhiteElo "2411"]
[BlackElo "2541"]
[TimeControl "180+1"]
[EndTime "10:06:05 PDT"]
[Termination "FeketeBarika won on time"]

1. Nf3 {[%clk 0:03:00.9]} 1... g6 {[%clk 0:02:59.9]} 2. g3 {[%clk 0:02:57.9]}
2... Bg7 {[%clk 0:03:00.5]} 3. Bg2 {[%clk 0:02:55.9]} 3... Nf6 {[%clk
0:03:01.4]} 4. O-O {[%clk 0:02:55.6]} 4... O-O {[%clk 0:03:02.3]} 5. c4 {[%clk
0:02:55.2]} 5... d6 {[%clk 0:03:03.2]} 6. Nc3 {[%clk 0:02:54.3]} 6... Nbd7
{[%clk 0:03:03.2]} 7. Rb1 {[%clk 0:02:52.6]} 7... c5 {[%clk 0:03:03.4]} 8. d3
{[%clk 0:02:48.9]} 8... Rb8 {[%clk 0:03:03.8]} 9. a3 {[%clk 0:02:48.4]} 9... b6
{[%clk 0:03:04.4]} 10. Bd2 {[%clk 0:02:47.1]} 10... Bb7 {[%clk 0:03:05]} 11. b4
{[%clk 0:02:45.2]} 11... e6 {[%clk 0:02:57.8]} 12. e4 {[%clk 0:02:43]} 12... a6
{[%clk 0:02:55.4]} 13. b5 {[%clk 0:02:30.3]} 13... a5 {[%clk 0:02:54.8]} 14. Qb3
{[%clk 0:02:16]} 14... Ne5 {[%clk 0:02:52]} 15. Na4 {[%clk 0:02:10.3]} 15...
Nfd7 {[%clk 0:02:29.3]} 16. Ng5 {[%clk 0:01:48.5]} 16... Qc7 {[%clk 0:02:18.1]}
17. Kh1 {[%clk 0:01:36.2]} 17... h6 {[%clk 0:02:12.3]} 18. Nh3 {[%clk
0:01:35.5]} 18... f5 {[%clk 0:02:04.6]} 19. Nf4 {[%clk 0:01:23.5]} 19... Rbe8
{[%clk 0:02:04.5]} 20. Qc2 {[%clk 0:01:12.5]} 20... Nf6 {[%clk 0:01:57.2]} 21.
Bc3 {[%clk 0:00:59.4]} 21... g5 {[%clk 0:01:24.5]} 22. Bxe5 {[%clk 0:00:51.3]}
22... dxe5 {[%clk 0:01:23.9]} 23. Ng6 {[%clk 0:00:51.9]} 23... Rf7 {[%clk
0:01:23.5]} 24. f4 {[%clk 0:00:40.7]} 24... exf4 {[%clk 0:01:09.5]} 25. gxf4
{[%clk 0:00:41.6]} 25... Ng4 {[%clk 0:01:10.1]} 26. Qe2 {[%clk 0:00:34.2]} 26...
Kh7 {[%clk 0:00:59.6]} 27. exf5 {[%clk 0:00:26.9]} 27... Bxg2+ {[%clk
0:00:36.5]} 28. Kxg2 {[%clk 0:00:27.8]} 28... Rxf5 {[%clk 0:00:33.5]} 29. Qxg4
{[%clk 0:00:22.6]} 29... Kxg6 {[%clk 0:00:33.6]} 30. Rbe1 {[%clk 0:00:19.7]}
30... Qd6 {[%clk 0:00:17.7]} 31. Qg3 {[%clk 0:00:11.4]} 31... Rxf4 {[%clk
0:00:04.8]} 32. Rxf4 {[%clk 0:00:10.6]} 32... Qxf4 {[%clk 0:00:05.7]} 33. Qxf4
{[%clk 0:00:10.8]} 33... gxf4 {[%clk 0:00:06.6]} 34. Nxb6 {[%clk 0:00:10.6]}
34... Kf5 {[%clk 0:00:06.9]} 35. Kf3 {[%clk 0:00:10.7]} 35... Bd4 {[%clk
0:00:06.4]} 36. Nd7 {[%clk 0:00:06.5]} 36... Rd8 {[%clk 0:00:04.3]} 37. Nb6
{[%clk 0:00:05.3]} 37... h5 {[%clk 0:00:02.5]} 38. Na4 {[%clk 0:00:05.3]} 38...
h4 {[%clk 0:00:02.2]} 39. Re2 {[%clk 0:00:04.9]} 39... h3 {[%clk 0:00:02.3]} 40.
b6 {[%clk 0:00:03.4]} 40... Rg8 {[%clk 0:00:02.4]} 41. Re4 {[%clk 0:00:01.1]}
41... Rg2 {[%clk 0:00:01.1]} 42. Rxf4+ {[%clk 0:00:01.5]} 42... Ke5 {[%clk
0:00:01.1]} 43. Re4+ {[%clk 0:00:02.1]} 43... Kf5 {[%clk 0:00:01.3]} 44. Rf4+
{[%clk 0:00:02.1]} 44... Kg5 {[%clk 0:00:02]} 45. Rxd4 {[%clk 0:00:01.2]} 45...
cxd4 {[%clk 0:00:01.7]} 46. b7 {[%clk 0:00:01.8]} 1-0

[Event "Early-Titled-Tuesday-Blitz-September-05-2023"]
[Site "Chess.com"]
[Date "2023.09.05"]
[Round "11"]
[White "miraitrunks"]
[Black "secretsuperstar7"]
[Result "0-1"]
[WhiteElo "2060"]
[BlackElo "2393"]
[TimeControl "180+1"]
[EndTime "10:06:07 PDT"]
[Termination "secretsuperstar7 won by resignation"]

1. e4 {[%clk 0:02:45.3]} 1... c5 {[%clk 0:02:59.2]} 2. Nc3 {[%clk 0:02:44.9]}
2... a6 {[%clk 0:02:54.5]} 3. a4 {[%clk 0:02:44.3]} 3... b6 {[%clk 0:02:54.1]}
4. Nge2 {[%clk 0:02:44.7]} 4... Bb7 {[%clk 0:02:54.2]} 5. g3 {[%clk 0:02:45.1]}
5... g6 {[%clk 0:02:50.3]} 6. Bg2 {[%clk 0:02:45.2]} 6... Bg7 {[%clk 0:02:50.4]}
7. O-O {[%clk 0:02:45]} 7... e5 {[%clk 0:02:49]} 8. f4 {[%clk 0:02:42.6]} 8...
d6 {[%clk 0:02:48.3]} 9. d3 {[%clk 0:02:41.1]} 9... Ne7 {[%clk 0:02:47.2]} 10.
Be3 {[%clk 0:02:36.3]} 10... O-O {[%clk 0:02:42.9]} 11. Qd2 {[%clk 0:02:36.8]}
11... Nbc6 {[%clk 0:02:41.3]} 12. f5 {[%clk 0:02:36.5]} 12... f6 {[%clk
0:02:40.4]} 13. Bh6 {[%clk 0:02:36.8]} 13... g5 {[%clk 0:02:37.2]} 14. Bxg7
{[%clk 0:02:35.1]} 14... Kxg7 {[%clk 0:02:38.1]} 15. g4 {[%clk 0:02:35.9]} 15...
Rh8 {[%clk 0:02:23.4]} 16. Ng3 {[%clk 0:02:34.5]} 16... Nd4 {[%clk 0:02:17.8]}
17. Nh5+ {[%clk 0:02:23.2]} 17... Kf7 {[%clk 0:02:17.2]} 18. Ne2 {[%clk
0:02:22.5]} 18... Bc6 {[%clk 0:02:09.7]} 19. Nxd4 {[%clk 0:02:10]} 19... cxd4
{[%clk 0:02:08.9]} 20. Qb4 {[%clk 0:02:09.4]} 20... d5 {[%clk 0:02:06.1]} 21.
exd5 {[%clk 0:02:02]} 21... Nxd5 {[%clk 0:02:01.5]} 22. Qb3 {[%clk 0:02:01.1]}
22... Kf8 {[%clk 0:01:43.8]} 23. Rae1 {[%clk 0:01:51.6]} 23... Rc8 {[%clk
0:01:38.7]} 24. Rf2 {[%clk 0:01:35.6]} 24... Ne3 {[%clk 0:01:35.1]} 25. Qe6
{[%clk 0:00:37.9]} 25... Bxg2 {[%clk 0:01:18.1]} 26. Rxg2 {[%clk 0:00:28.1]}
26... Nxg2 {[%clk 0:01:11.6]} 27. Nxf6 {[%clk 0:00:19.8]} 27... Rc7 {[%clk
0:00:55.7]} 28. Rxe5 {[%clk 0:00:10.8]} 28... Re7 {[%clk 0:00:43.6]} 29. Nd7+
{[%clk 0:00:08.7]} 29... Rxd7 {[%clk 0:00:19.4]} 30. Qh6+ {[%clk 0:00:08.8]}
30... Kg8 {[%clk 0:00:08.5]} 31. f6 {[%clk 0:00:09.1]} 31... Nf4 {[%clk
0:00:07.1]} 32. Qxg5+ {[%clk 0:00:08.7]} 32... Ng6 {[%clk 0:00:07.3]} 33. f7+
{[%clk 0:00:08.7]} 33... Kxf7 {[%clk 0:00:05.6]} 34. Rf5+ {[%clk 0:00:07.9]}
34... Kg7 {[%clk 0:00:05.6]} 35. Qh5 {[%clk 0:00:03.8]} 35... Rf8 {[%clk
0:00:05.7]} 36. Rg5 {[%clk 0:00:03.9]} 36... Qf6 {[%clk 0:00:05.6]} 37. Rf5
{[%clk 0:00:04.4]} 37... Qe6 {[%clk 0:00:05]} 38. Qg5 {[%clk 0:00:03.7]} 38...
Qe1+ {[%clk 0:00:05]} 39. Kg2 {[%clk 0:00:04.2]} 39... Qe2+ {[%clk 0:00:05.3]}
40. Kh1 {[%clk 0:00:05]} 40... Rxf5 {[%clk 0:00:05.4]} 41. gxf5 {[%clk
0:00:05.3]} 41... Qf1+ {[%clk 0:00:05.7]} 42. Qg1 {[%clk 0:00:04.7]} 42... Qxg1+
{[%clk 0:00:06.1]} 43. Kxg1 {[%clk 0:00:05.5]} 43... Ne7 {[%clk 0:00:07]} 0-1